fUSD/lending_fUSD_20250127
["ID","MTS","AMOUNT","RATE_DAILY","PERIOD"]
[350547860,1737958262115,-500.0,0.00010958,2]
[350547861,1737958262124,-500.0,0.00010958,2]
[350547862,1737958262134,-500.0,0.00010958,2]
[350547863,1737958262143,-500.0,0.00010958,2]
[350547864,1737958262152,-500.0,0.00010958,2]
[350547865,1737958262162,-500.0,0.00010958,2]
[350547866,1737958262171,-500.0,0.00010958,2]
[350547867,1737958262181,-500.0,0.00010958,2]
[350547868,1737958262190,-500.0,0.00010958,2]
[350547869,1737958262200,-500.0,0.00010958,2]
[350547870,1737958262210,-500.0,0.00010958,2]
[350547871,1737958262219,-500.0,0.00010958,2]
[350547872,1737958262228,-500.0,0.00010958,2]
[350547873,1737958262238,-500.0,0.00010958,2]
[350547874,1737958262247,-500.0,0.00010958,2]
[350547875,1737958262257,-151.0,0.00010958,2]
[350547876,1737958262266,-500.0,0.00010958,2]
[350547877,1737958262276,-500.0,0.00010958,2]
[350547878,1737958262286,-151.0,0.00010958,2]
[350547879,1737958262295,-500.0,0.00010958,2]
[350547880,1737958262304,-500.0,0.00010958,2]
[350547881,1737958262313,-500.0,0.00010958,2]
[350547882,1737958262323,-151.0,0.00010958,2]
[350547883,1737958262332,-500.0,0.00010958,2]
[350547884,1737958262342,-506.70317433,0.00010958,2]
[350547885,1737958262351,-151.0,0.00010958,2]
[350547886,1737958262361,-536.20171025,0.00010958,2]
[350547887,1737958262497,-1645.61,0.00010958,2]
[350547888,1737958262507,-151.0,0.00010958,2]
[350547889,1737958262516,-1645.61,0.00010958,2]
[350547890,1737958262526,-151.0,0.00010958,2]
[350547891,1737958262535,-1645.61,0.00010958,2]
[350547892,1737958262544,-1645.61,0.00010958,2]
[350547893,1737958262553,-151.0,0.00010958,2]
[350547894,1737958262562,-1645.61,0.00010958,2]
[350547895,1737958262571,-151.0,0.00010958,2]
[350547896,1737958262580,-1645.61,0.00010958,2]
[350547897,1737958262589,-500.0,0.00010958,2]
[350547898,1737958262598,-151.0,0.00010958,2]
[350547899,1737958262607,-1645.61,0.00010958,2]
[350547900,1737958262628,-500.0,0.00010958,2]
[350547901,1737958262639,-500.0,0.00010958,2]
[350547902,1737958262648,-500.0,0.00010958,2]
[350547903,1737958262658,-151.0,0.00010958,2]
[350547904,1737958262668,-500.0,0.00010958,2]
[350547905,1737958262677,-500.0,0.00010958,2]
[350547906,1737958262687,-528.39930559,0.00010958,2]
[350547907,1737958262696,-500.0,0.00010958,2]
[350547908,1737958262706,-521.53865268,0.00010958,2]
[350547909,1737958262715,-151.0,0.00010958,2]
[350547910,1737958262724,-500.0,0.00010958,2]
[350547911,1737958262734,-500.0,0.00010958,2]
[350547912,1737958262743,-500.0,0.00010958,2]
[350547913,1737958262752,-500.0,0.00010958,2]
[350547914,1737958262762,-151.0,0.00010958,2]
[350547915,1737958262771,-500.0,0.00010958,2]
[350547916,1737958262780,-151.0,0.00010958,2]
[350547917,1737958262789,-151.0,0.00010958,2]
[350547918,1737958262798,-500.0,0.00010958,2]
[350547919,1737958262807,-151.0,0.00010958,2]
[350547920,1737958262817,-500.0,0.00010958,2]
[350547921,1737958262826,-500.0,0.00010958,2]
[350547922,1737958262835,-173.25769479,0.00010958,2]
[350547923,1737958262845,-151.0,0.00010958,2]
[350547924,1737958262855,-151.0,0.00010958,2]
[350547925,1737958262865,-500.0,0.00010958,2]
[350547926,1737958262875,-151.0,0.00010958,2]
[350547927,1737958262884,-500.0,0.00010958,2]
[350547928,1737958262894,-151.0,0.00010958,2]
[350547929,1737958262903,-500.0,0.00010958,2]
[350547930,1737958262913,-365.20085484,0.00010958,2]
[350547931,1737958262922,-151.0,0.00010958,2]
[350547932,1737958262932,-500.0,0.00010958,2]
[350547933,1737958262942,-500.0,0.00010958,2]
[350547934,1737958262951,-261.104947,0.00010958,2]
[350547935,1737958262961,-500.0,0.00010958,2]
[350547936,1737958262971,-500.0,0.00010958,2]
[350547937,1737958262981,-500.0,0.00010958,2]
[350547938,1737958262991,-500.0,0.00010958,2]
[350547939,1737958263000,-500.0,0.00010958,2]
[350547940,1737958263010,-500.0,0.00010958,2]
[350547941,1737958263019,-500.0,0.00010958,2]
[350547942,1737958263028,-500.0,0.00010958,2]
[350547943,1737958263038,-500.0,0.00010958,2]
[350547944,1737958263048,-506.89979965,0.00010958,2]
[350547945,1737958263057,-500.0,0.00010958,2]
[350547946,1737958263067,-512.7818679,0.00010958,2]
[350547947,1737958263076,-500.0,0.00010958,2]
[350547948,1737958263087,-500.0,0.00010958,2]
[350547949,1737958263096,-500.0,0.00010958,2]
[350547950,1737958263105,-500.0,0.00010958,2]
[350547951,1737958263115,-500.0,0.00010958,2]
[350547952,1737958263124,-500.0,0.00010958,2]
[350547953,1737958263133,-500.0,0.00010958,2]
[350547954,1737958263142,-500.0,0.00010958,2]
[350547955,1737958263151,-500.0,0.00010958,2]
[350547956,1737958263160,-511.21884453,0.00010958,2]
[350547957,1737958263170,-665.89,0.00010958,2]
[350547958,1737958263179,-500.0,0.00010958,2]
[350547959,1737958263189,-665.89,0.00010958,2]
[350547960,1737958263199,-500.0,0.00010958,2]
[350547961,1737958263208,-665.89,0.00010958,2]
[350547962,1737958263217,-500.0,0.00010958,2]
[350547963,1737958263226,-665.89,0.00010958,2]
[350547964,1737958263235,-508.85626999,0.00010958,2]
[350547965,1737958263244,-500.0,0.00010958,2]
[350547966,1737958263254,-538.21506102,0.00010958,2]
[350547967,1737958263263,-665.89,0.00010958,2]
[350547968,1737958263272,-500.0,0.00010958,2]
[350547969,1737958263282,-523.74255367,0.00010958,2]
[350547970,1737958263291,-665.89,0.00010958,2]
[350547971,1737958263301,-500.0,0.00010958,2]
[350547972,1737958263310,-500.0,0.00010958,2]
[350547973,1737958263320,-500.0,0.00010958,2]
[350547974,1737958263330,-500.0,0.00010958,2]
[350547975,1737958263339,-500.0,0.00010958,2]
[350547976,1737958263349,-500.0,0.00010958,2]
[350547977,1737958263358,-500.0,0.00010958,2]
[350547978,1737958263367,-500.0,0.00010958,2]
[350547979,1737958263377,-500.0,0.00010958,2]
[350547980,1737958263387,-500.0,0.00010958,2]
[350547981,1737958263396,-500.0,0.00010958,2]
[350547982,1737958263406,-500.0,0.00010958,2]
[350547983,1737958263415,-500.0,0.00010958,2]
[350547984,1737958263425,-500.0,0.00010958,2]
[350547985,1737958263435,-500.0,0.00010958,2]
[350547986,1737958263448,-500.0,0.00010958,2]
[350547987,1737958263458,-270.7839092,0.00010958,2]
[350547988,1737958263467,-500.0,0.00010958,2]
[350547989,1737958263476,-500.0,0.00010958,2]
[350547990,1737958263486,-500.0,0.00010958,2]
[350547991,1737958263496,-500.0,0.00010958,2]
[350547992,1737958263505,-500.0,0.00010958,2]
[350547993,1737958263514,-527.20656151,0.00010958,2]
[350547994,1737958263524,-500.0,0.00010958,2]
[350547995,1737958263533,-500.0,0.00010958,2]
[350547996,1737958263543,-500.0,0.00010958,2]
[350547997,1737958263552,-500.0,0.00010958,2]
[350547998,1737958263561,-500.0,0.00010958,2]
[350547999,1737958263570,-500.0,0.00010958,2]
[350548000,1737958263579,-500.0,0.00010958,2]
[350548001,1737958263589,-500.0,0.00010958,2]
[350548002,1737958263599,-500.0,0.00010958,2]
[350548003,1737958263608,-536.44,0.00010958,2]
[350548004,1737958263619,-536.44,0.00010958,2]
[350548005,1737958263629,-536.44,0.00010958,2]
[350548006,1737958263643,-500.0,0.00010958,2]
[350548007,1737958263652,-536.44,0.00010958,2]
[350548008,1737958263663,-500.0,0.00010958,2]
[350548009,1737958263672,-500.0,0.00010958,2]
[350548010,1737958263682,-500.0,0.00010958,2]
[350548011,1737958263691,-500.0,0.00010958,2]
[350548012,1737958263701,-536.44,0.00010958,2]
[350548013,1737958263710,-504.21156813,0.00010958,2]
[350548014,1737958263720,-561.43118983,0.00010958,2]
[350548015,1737958263729,-500.0,0.00010958,2]
[350548016,1737958263740,-500.0,0.00010958,2]
[350548017,1737958263749,-500.0,0.00010958,2]
[350548018,1737958263759,-536.44,0.00010958,2]
[350548019,1737958263768,-500.0,0.00010958,2]
[350548020,1737958263778,-500.0,0.00010958,2]
[350548021,1737958263787,-500.0,0.00010958,2]
[350548022,1737958263797,-536.44,0.00010958,2]
[350548023,1737958263807,-500.0,0.00010958,2]
[350548024,1737958263816,-500.0,0.00010958,2]
[350548025,1737958263825,-500.0,0.00010958,2]
[350548026,1737958263835,-500.0,0.00010958,2]
[350548027,1737958263844,-500.0,0.00010958,2]
[350548028,1737958263853,-500.0,0.00010958,2]
[350548029,1737958263863,-533.30183873,0.00010958,2]
[350548030,1737958263872,-500.0,0.00010958,2]
[350548031,1737958263881,-500.0,0.00010958,2]
[350548032,1737958263890,-500.0,0.00010958,2]
[350548033,1737958263900,-500.0,0.00010958,2]
[350548034,1737958263909,-500.0,0.00010958,2]
[350548035,1737958263918,-500.0,0.00010958,2]
[350548036,1737958263927,-500.0,0.00010958,2]
[350548037,1737958263937,-150.0,0.00010959,2]
[350548038,1737958263947,-700.0,0.00010972,2]
[350548039,1737958263956,-1700.0,0.00010972,2]
[350548040,1737958263966,-500.0,0.00010973,2]
[350548041,1737958263976,-500.0,0.00010973,2]
[350548042,1737958263986,-538.43641773,0.00010997,2]
[350548043,1737958263996,-2910.64,0.00011,2]
[350548044,1737958264006,-500.0,0.00011068,2]
[350548045,1737958264016,-3444.67975494,0.00011099,2]
[350548046,1737958264026,-3444.67975486,0.00011099,2]
[350548047,1737958264037,-3444.67975486,0.00011099,2]
[350548048,1737958264047,-5191.03428932,0.00011099,2]
[350548049,1737958264058,-5191.03428926,0.00011099,2]
[350548050,1737958264068,-5191.03428926,0.00011099,2]
[350548051,1737958264078,-5191.03428926,0.00011099,2]
[350548052,1737958264088,-3444.67975486,0.000111,2]
[350548053,1737958264098,-3000.0,0.000111,2]
[350548054,1737958264110,-373.8026752,0.0001112,2]
[350548055,1737958264119,-1297.0,0.00011126,2]
[350548056,1737958264129,-5191.03428926,0.00011178,2]
[350548057,1737958264139,-198.94,0.0001122,2]
[350548058,1737958264148,-3444.67975486,0.00011233,2]
[350548059,1737958264158,-5191.03428926,0.00011322,2]
[350548060,1737958264168,-3444.67975486,0.00011367,2]
[350548061,1737958264178,-475.11474937,0.00011388,2]
[350548062,1737958264188,-373.8026752,0.00011395,2]
[350548063,1737958264198,-5191.03428926,0.00011467,2]
[350548064,1737958264207,-3444.67975486,0.000115,2]
[350548065,1737958264216,-2751.0,0.00011507,2]
[350548066,1737958264225,-1058.51938884,0.00011518,2]
[350548067,1737958264235,-1000.0,0.00011521,2]
[350548068,1737958264244,-1000.0,0.00011521,2]
[350548069,1737958264253,-500.0,0.00011552,2]
[350548070,1737958264263,-500.0,0.00011552,2]
[350548071,1737958264272,-167.35541679,0.00011552,2]
[350548072,1737958264282,-720.86,0.00011552,2]
[350548073,1737958264291,-500.0,0.00011552,2]
[350548074,1737958264300,-169.62143,0.00011552,2]
[350548075,1737958264309,-500.0,0.00011552,2]
[350548076,1737958264319,-500.0,0.00011552,2]
[350548077,1737958264328,-500.0,0.00011552,2]
[350548078,1737958264338,-579.2,0.00011552,2]
[350548079,1737958264347,-195.98818,0.00011552,2]
[350548080,1737958264357,-500.0,0.00011552,2]
[350548081,1737958264366,-500.0,0.00011552,2]
[350548082,1737958264376,-500.0,0.00011552,2]
[350548083,1737958264385,-500.0,0.00011552,2]
[350548084,1737958264395,-783.33,0.00011552,2]
[350548085,1737958264404,-500.0,0.00011552,2]
[350548086,1737958264413,-500.0,0.00011552,2]
[350548087,1737958264423,-500.0,0.00011552,2]
[350548088,1737958264433,-500.0,0.00011552,2]
[350548089,1737958264445,-500.0,0.00011552,2]
[350548090,1737958264454,-500.0,0.00011552,2]
[350548091,1737958264464,-216.76,0.00011552,2]
[350548092,1737958264473,-500.0,0.00011552,2]
[350548093,1737958264483,-500.0,0.00011552,2]
[350548094,1737958264495,-500.0,0.00011552,2]
[350548095,1737958264506,-573.46,0.00011552,2]
[350548096,1737958264516,-500.0,0.00011552,2]
[350548097,1737958264526,-500.0,0.00011552,2]
[350548098,1737958264535,-765.84,0.00011552,2]
[350548099,1737958264545,-500.0,0.00011552,2]
[350548100,1737958264555,-500.0,0.00011552,2]
[350548101,1737958264564,-500.0,0.00011552,2]
[350548102,1737958264574,-500.0,0.00011552,2]
[350548103,1737958264584,-500.0,0.00011552,2]
[350548104,1737958264594,-500.0,0.00011552,2]
[350548105,1737958264604,-665.89,0.00011552,2]
[350548106,1737958264615,-500.0,0.00011552,2]
[350548107,1737958264656,-587.0,0.00011598,2]
[350548108,1737958264666,-19529.51115342,0.000116,2]
[350548109,1737958264675,-4000.0,0.000116,4]
[350548110,1737958264685,-5191.03428926,0.00011611,2]
[350548111,1737958264694,-3444.67975486,0.00011633,2]
[350548112,1737958264704,-1773.0868,0.00011659,2]
[350548113,1737958264714,-49467.395504,0.00011699,2]
[350548114,1737958264723,-5000.0,0.000117,4]
[350548115,1737958264733,-171.7,0.00011703,2]
[350548116,1737958264743,-782.94,0.00011752,2]
[350548117,1737958264752,-5191.03428926,0.00011756,2]
[350548118,1737958264762,-590.5681211,0.0001176,2]
[350548119,1737958264772,-3444.67975486,0.00011767,2]
[350548120,1737958264781,-1004.34,0.00011774,2]
[350548121,1737958264790,-1000.0,0.000118,4]
[350548122,1737958264800,-6389.51243384,0.00011827,2]
[350548123,1737958264809,-200.0,0.00011827,2]
[350548124,1737958264819,-536.3275325,0.00011827,2]
[350548125,1737958264828,-9503.36352018,0.00011827,2]
[350548126,1737958264838,-480.0,0.00011829,2]
[350548127,1737958264848,-1915.3134996,0.0001183,2]
[350548128,1737958264859,-530.73838969,0.00011832,2]
[350548129,1737958264869,-480.0,0.00011832,2]
[350548130,1737958264878,-536.3275325,0.00011833,2]
[350548131,1737958264888,-9503.36352018,0.00011838,2]
[350548132,1737958264898,-530.73838969,0.00011838,2]
[350548133,1737958264908,-17479.57432114,0.00011838,2]
[350548134,1737958264917,-255.24672227,0.00011843,2]
[350548135,1737958264927,-9177.4708052,0.00011843,2]
[350548136,1737958264936,-1224.57417533,0.00011844,2]
[350548137,1737958264945,-536.3275325,0.00011844,2]
[350548138,1737958264955,-469.38608941,0.00011844,2]
[350548139,1737958265090,-811.20542814,0.00011844,2]
[350548140,1737958265100,-17479.57432114,0.00011844,2]
[350548141,1737958265110,-6389.51243384,0.00011844,2]
[350548142,1737958265119,-9503.36352018,0.00011848,2]
[350548143,1737958265129,-665.87777909,0.00011852,2]
[350548144,1737958265138,-480.0,0.00011854,2]
[350548145,1737958265147,-500.0,0.00011854,2]
[350548146,1737958265156,-753.55,0.00011854,2]
[350548147,1737958265166,-566.03278261,0.00011854,2]
[350548148,1737958265175,-500.0,0.00011854,2]
[350548149,1737958265184,-1332.04,0.00011854,2]
[350548150,1737958265194,-500.0,0.00011854,2]
[350548151,1737958265204,-500.0,0.00011854,2]
[350548152,1737958265213,-731.43,0.00011854,2]
[350548153,1737958265222,-457.13853328,0.00011854,2]
[350548154,1737958265231,-547.48,0.00011854,2]
[350548155,1737958265239,-500.0,0.00011854,2]
[350548156,1737958265248,-638.29,0.00011854,2]
[350548157,1737958265257,-1055.48,0.00011854,2]
[350548158,1737958265267,-960.89,0.00011854,2]
[350548159,1737958265276,-1021.56,0.00011854,2]
[350548160,1737958265285,-582.98,0.00011854,2]
[350548161,1737958265294,-500.0,0.00011854,2]
[350548162,1737958265304,-1645.61,0.00011854,2]
[350548163,1737958265313,-524.72917893,0.00011854,2]
[350548164,1737958265322,-500.0,0.00011854,2]
[350548165,1737958265331,-500.0,0.00011854,2]
[350548166,1737958265340,-500.0,0.00011854,2]
[350548167,1737958265349,-500.0,0.00011854,2]
[350548168,1737958265359,-500.0,0.00011854,2]
[350548169,1737958265368,-536.44,0.00011854,2]
[350548170,1737958265377,-469.38608941,0.00011854,2]
[350548171,1737958265387,-255.24672227,0.00011855,2]
[350548172,1737958265396,-500.0,0.00011855,2]
[350548173,1737958265405,-500.0,0.00011855,2]
[350548174,1737958265414,-500.0,0.00011855,2]
[350548175,1737958265422,-500.0,0.00011855,2]
[350548176,1737958265432,-500.0,0.00011855,2]
[350548177,1737958265444,-500.0,0.00011855,2]
[350548178,1737958265454,-500.0,0.00011855,2]
[350548179,1737958265463,-476.25552823,0.00011855,2]
[350548180,1737958265473,-500.0,0.00011855,2]
[350548181,1737958265483,-472.26855572,0.00011855,2]
[350548182,1737958265494,-593.96,0.00011855,2]
[350548183,1737958265503,-500.0,0.00011855,2]
[350548184,1737958265512,-456.49122729,0.00011855,2]
[350548185,1737958265524,-500.0,0.00011855,2]
[350548186,1737958265533,-500.0,0.00011855,2]
[350548187,1737958265542,-500.0,0.00011855,2]
[350548188,1737958265551,-500.0,0.00011855,2]
[350548189,1737958265560,-500.0,0.00011855,2]
[350548190,1737958265569,-500.0,0.00011855,2]
[350548191,1737958265579,-500.0,0.00011855,2]
[350548192,1737958265588,-660.68,0.00011855,2]
[350548193,1737958265597,-1292.68,0.00011855,2]
[350548194,1737958265607,-500.0,0.00011855,2]
[350548195,1737958265616,-500.0,0.00011855,2]
[350548196,1737958265625,-1641.68,0.00011855,2]
[350548197,1737958265635,-500.0,0.00011855,2]
[350548198,1737958265644,-500.0,0.00011855,2]
[350548199,1737958265653,-500.0,0.00011855,2]
[350548200,1737958265662,-500.0,0.00011855,2]
[350548201,1737958265671,-500.0,0.00011855,2]
[350548202,1737958265681,-500.0,0.00011855,2]
[350548203,1737958265690,-500.0,0.00011855,2]
[350548204,1737958265699,-500.0,0.00011855,2]
[350548205,1737958265709,-500.0,0.00011855,2]
[350548206,1737958265718,-500.0,0.00011855,2]
[350548207,1737958265727,-500.0,0.00011855,2]
[350548208,1737958265737,-500.0,0.00011855,2]
[350548209,1737958265746,-500.0,0.00011855,2]
[350548210,1737958265756,-500.0,0.00011855,2]
[350548211,1737958265765,-527.35450026,0.00011855,2]
[350548212,1737958265774,-238.42579316,0.00011855,2]
[350548213,1737958265783,-500.0,0.00011855,2]
[350548214,1737958265793,-432.54,0.00011855,2]
[350548215,1737958265802,-640.97,0.00011855,2]
[350548216,1737958265812,-500.0,0.00011855,2]
[350548217,1737958265822,-500.0,0.00011855,2]
[350548218,1737958265832,-500.0,0.00011855,2]
[350548219,1737958265841,-1224.57417533,0.00011856,2]
[350548220,1737958265850,-2943.995,0.00011856,2]
[350548221,1737958265859,-159.599,0.00011856,2]
[350548222,1737958265869,-317.04101652,0.00011856,2]
[350548223,1737958265879,-530.73838969,0.00011857,2]
[350548224,1737958265888,-469.38608941,0.00011857,2]
[350548225,1737958265898,-317.04101652,0.00011859,2]
[350548226,1737958265907,-9503.36352018,0.00011859,2]
[350548227,1737958265916,-1915.3134996,0.0001186,2]
[350548228,1737958265925,-665.87777909,0.0001186,2]
[350548229,1737958265934,-1224.57417533,0.00011863,2]
[350548230,1737958265943,-17479.57432114,0.00011864,2]
[350548231,1737958265952,-255.24672227,0.00011864,2]
[350548232,1737958265961,-811.20542814,0.00011864,2]
[350548233,1737958265970,-317.04101652,0.00011866,2]
[350548234,1737958265979,-1915.3134996,0.00011869,2]
[350548235,1737958265988,-17479.57432114,0.00011871,2]
[350548236,1737958265998,-9503.36352018,0.00011871,2]
[350548237,1737958266007,-469.38608941,0.00011872,2]
[350548238,1737958266016,-1145.3482732,0.00011872,2]
[350548239,1737958266026,-530.73838969,0.00011872,2]
[350548240,1737958266035,-536.3275325,0.00011873,2]
[350548241,1737958266044,-9177.4708052,0.00011874,2]
[350548242,1737958266053,-665.87777909,0.00011875,2]
[350548243,1737958266062,-255.24672227,0.00011877,2]
[350548244,1737958266072,-665.87777909,0.00011878,2]
[350548245,1737958266081,-1145.3482732,0.0001188,2]
[350548246,1737958266090,-811.20542814,0.0001188,2]
[350548247,1737958266100,-17479.57432114,0.00011884,2]
[350548248,1737958266110,-536.3275325,0.00011885,2]
[350548249,1737958266120,-6389.51243384,0.00011886,2]
[350548250,1737958266129,-1915.3134996,0.0001189,2]
[350548251,1737958266138,-480.0,0.0001189,2]
[350548252,1737958266147,-811.20542814,0.00011892,2]
[350548253,1737958266156,-1224.57417533,0.00011892,2]
[350548254,1737958266166,-200.0,0.00011895,2]
[350548255,1737958266176,-3444.67975486,0.000119,2]
[350548256,1737958266185,-1000.0,0.000119,4]
[350548257,1737958266195,-5191.03428926,0.000119,2]
[350548258,1737958266204,-381.2132787,0.000119,2]
[350548259,1737958266214,-167.70256461,0.000119,2]
[350548260,1737958266223,-6389.51243384,0.000119,2]
[350548261,1737958266232,-9177.4708052,0.00011901,2]
[350548262,1737958266241,-9177.4708052,0.00011905,2]
[350548263,1737958266250,-530.73838969,0.00011906,2]
[350548264,1737958266260,-469.38608941,0.00011907,2]
[350548265,1737958266269,-9177.4708052,0.00011907,2]
[350548266,1737958266278,-200.0,0.00011909,2]
[350548267,1737958266288,-317.04101652,0.00011912,2]
[350548268,1737958266297,-1145.3482732,0.00011912,2]
[350548269,1737958266307,-1145.3482732,0.00011913,2]
[350548270,1737958266317,-480.0,0.00011913,2]
[350548271,1737958266327,-1915.3134996,0.00011913,2]
[350548272,1737958266336,-1224.57417533,0.00011915,2]
[350548273,1737958266345,-811.20542814,0.00011916,2]
[350548274,1737958266354,-1145.3482732,0.00011916,2]
[350548275,1737958266363,-317.04101652,0.00011917,2]
[350548276,1737958266372,-255.24672227,0.00011917,2]
[350548277,1737958266381,-200.0,0.00011917,2]
[350548278,1737958266391,-150.884,0.00011918,2]
[350548279,1737958266400,-3906.0,0.00011918,2]
[350548280,1737958266409,-665.87777909,0.00011918,2]
[350548281,1737958266419,-6389.51243384,0.00011919,2]
[350548282,1737958266427,-5793.0,0.00011973,2]
[350548283,1737958266438,-213.3596509,0.00011989,2]
[350548284,1737958266451,-282.9095625,0.00011989,2]
[350548285,1737958266460,-381.95666904,0.0001199,2]
[350548286,1737958266470,-381.95666904,0.0001199,2]
[350548287,1737958266480,-283.6391683,0.00011992,2]
[350548288,1737958266491,-353.9186857,0.00011992,2]
[350548289,1737958266500,-377.7674747,0.00011992,2]
[350548290,1737958266511,-472.6253868,0.00011992,2]
[350548291,1737958266521,-500.0,0.00011997,2]
[350548292,1737958266531,-500.0,0.00011997,2]
[350548293,1737958266541,-720.86,0.00011997,2]
[350548294,1737958266550,-500.0,0.00011997,2]
[350548295,1737958266560,-169.62143,0.00011997,2]
[350548296,1737958266570,-500.0,0.00011997,2]
[350548297,1737958266580,-561.70213822,0.00011997,2]
[350548298,1737958266589,-500.0,0.00011997,2]
[350548299,1737958266599,-579.2,0.00011997,2]
[350548300,1737958266609,-195.98818,0.00011997,2]
[350548301,1737958266620,-500.0,0.00011997,2]
[350548302,1737958266629,-500.0,0.00011997,2]
[350548303,1737958266639,-500.0,0.00011997,2]
[350548304,1737958266649,-500.0,0.00011997,2]
[350548305,1737958266659,-783.33,0.00011997,2]
[350548306,1737958266668,-500.0,0.00011997,2]
[350548307,1737958266677,-151.41859476,0.00011997,2]
[350548308,1737958266687,-500.0,0.00011997,2]
[350548309,1737958266697,-500.0,0.00011997,2]
[350548310,1737958266706,-500.0,0.00011997,2]
[350548311,1737958266715,-500.0,0.00011997,2]
[350548312,1737958266725,-500.0,0.00011997,2]
[350548313,1737958266735,-500.0,0.00011997,2]
[350548314,1737958266744,-500.0,0.00011997,2]
[350548315,1737958266754,-573.46,0.00011997,2]
[350548316,1737958266763,-500.0,0.00011997,2]
[350548317,1737958266773,-500.0,0.00011997,2]
[350548318,1737958266782,-765.84,0.00011997,2]
[350548319,1737958266791,-500.0,0.00011997,2]
[350548320,1737958266801,-500.0,0.00011997,2]
[350548321,1737958266810,-500.0,0.00011997,2]
[350548322,1737958266820,-500.0,0.00011997,2]
[350548323,1737958266829,-500.0,0.00011997,2]
[350548324,1737958266839,-500.0,0.00011997,2]
[350548325,1737958266848,-665.89,0.00011997,2]
[350548326,1737958266858,-936.30084379,0.00011998,2]
[350548327,1737958266868,-604.35859778,0.00011998,2]
[350548328,1737958266877,-485.0,0.00011998,2]
[350548329,1737958266886,-500.0,0.00011998,2]
[350548330,1737958266895,-500.0,0.00011998,2]
[350548331,1737958266905,-500.0,0.00011998,2]
[350548332,1737958266914,-500.0,0.00011998,2]
[350548333,1737958266923,-500.0,0.00011998,2]
[350548334,1737958266933,-500.0,0.00011998,2]
[350548335,1737958266942,-159.72,0.00011998,2]
[350548336,1737958266952,-500.0,0.00011998,2]
[350548337,1737958266962,-500.0,0.00011998,2]
[350548338,1737958266971,-500.0,0.00011998,2]
[350548339,1737958266980,-216.87670842,0.00011998,2]
[350548340,1737958266990,-500.0,0.00011998,2]
[350548341,1737958266999,-500.0,0.00011998,2]
[350548342,1737958267008,-500.0,0.00011998,2]
[350548343,1737958267018,-500.0,0.00011998,2]
[350548344,1737958267028,-500.0,0.00011998,2]
[350548345,1737958267037,-500.0,0.00011998,2]
[350548346,1737958267047,-500.0,0.00011998,2]
[350548347,1737958267056,-500.0,0.00011998,2]
[350548348,1737958267065,-500.0,0.00011998,2]
[350548349,1737958267074,-500.0,0.00011998,2]
[350548350,1737958267083,-162.84336777,0.00011998,2]
[350548351,1737958267093,-500.0,0.00011998,2]
[350548352,1737958267101,-500.0,0.00011998,2]
[350548353,1737958267111,-500.0,0.00011998,2]
[350548354,1737958267121,-500.0,0.00011998,2]
[350548355,1737958267131,-201.57844964,0.00011998,2]
[350548356,1737958267140,-500.0,0.00011998,2]
[350548357,1737958267150,-500.0,0.00011998,2]
[350548358,1737958267159,-500.0,0.00011998,2]
[350548359,1737958267168,-500.0,0.00011998,2]